[Event "Live Chess"]
[Site "Chess.com"]
[Date "2023.05.20"]
[Round "-"]
[White "wot-not"]
[Black "martynstanley"]
[Result "1-0"]
[WhiteElo "1469"]
[BlackElo "1014"]
[TimeControl "300"]
[EndTime "11:44:41 PDT"]
[Termination "wot-not won by checkmate"]

1. e4 {[%clk 0:04:56.3]} 1... e6 {[%clk 0:04:59.4]} 2. f4 {[%clk 0:04:55.2]}
2... d5 {[%clk 0:04:58.8]} 3. e5 {[%clk 0:04:53.7]} 3... c5 {[%clk 0:04:57.7]}
4. Nf3 {[%clk 0:04:53.4]} 4... Nc6 {[%clk 0:04:55.9]} 5. d4 {[%clk 0:04:53]}
5... Qb6 {[%clk 0:04:55.1]} 6. Bd3 {[%clk 0:04:51.3]} 6... Nh6 {[%clk
0:04:53.8]} 7. O-O {[%clk 0:04:49.5]} 7... Nf5 {[%clk 0:04:53]} 8. Bxf5 {[%clk
0:04:48.7]} 8... exf5 {[%clk 0:04:51.8]} 9. Kh1 {[%clk 0:04:46.6]} 9... cxd4
{[%clk 0:04:50.9]} 10. Nbd2 {[%clk 0:04:45.7]} 10... Qc7 {[%clk 0:04:48.8]} 11.
Nb3 {[%clk 0:04:45]} 11... b6 {[%clk 0:04:47.8]} 12. Nbxd4 {[%clk 0:04:42.4]}
12... Nxd4 {[%clk 0:04:46.5]} 13. Nxd4 {[%clk 0:04:41.8]} 13... Bb7 {[%clk
0:04:45.8]} 14. c3 {[%clk 0:04:39.9]} 14... Bc5 {[%clk 0:04:44.7]} 15. Be3
{[%clk 0:04:35]} 15... O-O-O {[%clk 0:04:42.8]} 16. b4 {[%clk 0:04:29.5]} 16...
Bxd4 {[%clk 0:04:41.2]} 17. Bxd4 {[%clk 0:04:28.9]} 17... Rhe8 {[%clk 0:04:40]}
18. a4 {[%clk 0:04:27.6]} 18... f6 {[%clk 0:04:37.9]} 19. a5 {[%clk 0:04:18.1]}
19... fxe5 {[%clk 0:04:35.7]} 20. Bxe5 {[%clk 0:04:14.1]} 20... Qc6 {[%clk
0:04:34.7]} 21. axb6 {[%clk 0:04:10.7]} 21... d4 {[%clk 0:04:31.7]} 22. Qf3
{[%clk 0:04:08.3]} 22... Qxf3 {[%clk 0:04:30.1]} 23. gxf3 {[%clk 0:04:07]} 23...
Bxf3+ {[%clk 0:04:29.5]} 24. Rxf3 {[%clk 0:04:05.8]} 24... d3 {[%clk 0:04:28.3]}
25. Rd1 {[%clk 0:04:01.3]} 25... d2 {[%clk 0:04:27.2]} 26. Rf2 {[%clk
0:03:58.4]} 26... axb6 {[%clk 0:04:25.4]} 27. Rfxd2 {[%clk 0:03:57.2]} 27...
Rxd2 {[%clk 0:04:24.3]} 28. Rxd2 {[%clk 0:03:56.5]} 28... Rd8 {[%clk 0:04:23.7]}
29. Rxd8+ {[%clk 0:03:55.2]} 29... Kxd8 {[%clk 0:04:23.1]} 30. Bxg7 {[%clk
0:03:54.9]} 30... h5 {[%clk 0:04:21.7]} 31. Bd4 {[%clk 0:03:53.6]} 31... Kd7
{[%clk 0:04:21.4]} 32. Bxb6 {[%clk 0:03:52.6]} 32... Kc6 {[%clk 0:04:21.2]} 33.
Bd4 {[%clk 0:03:51.9]} 33... Kb5 {[%clk 0:04:20.5]} 34. Kg2 {[%clk 0:03:51.5]}
34... Kc4 {[%clk 0:04:18.9]} 35. Kh3 {[%clk 0:03:51.2]} 35... Kb5 {[%clk
0:04:17.7]} 36. Kh4 {[%clk 0:03:50.9]} 36... Kc4 {[%clk 0:04:17.1]} 37. Kxh5
{[%clk 0:03:50.4]} 37... Kb5 {[%clk 0:04:16.5]} 38. Kg5 {[%clk 0:03:49.8]} 38...
Kc4 {[%clk 0:04:16]} 39. Kxf5 {[%clk 0:03:49.3]} 39... Kb5 {[%clk 0:04:15.4]}
40. Ke5 {[%clk 0:03:48.6]} 40... Kc4 {[%clk 0:04:14.9]} 41. f5 {[%clk 0:03:48]}
41... Kb5 {[%clk 0:04:14.1]} 42. Kd5 {[%clk 0:03:47.6]} 42... Ka4 {[%clk
0:04:12.9]} 43. f6 {[%clk 0:03:47.1]} 43... Kb3 {[%clk 0:04:12.4]} 44. f7 {[%clk
0:03:46.7]} 44... Kc2 {[%clk 0:04:11.9]} 45. f8=Q {[%clk 0:03:46.5]} 45... Kd3
{[%clk 0:04:11.2]} 46. c4 {[%clk 0:03:46]} 46... Kc2 {[%clk 0:04:08.4]} 47. c5
{[%clk 0:03:45.7]} 47... Kb3 {[%clk 0:04:07.9]} 48. c6 {[%clk 0:03:45.5]} 48...
Ka4 {[%clk 0:04:05.9]} 49. c7 {[%clk 0:03:45.2]} 49... Kb5 {[%clk 0:04:05.4]}
50. c8=Q {[%clk 0:03:41.8]} 50... Ka4 {[%clk 0:04:02.4]} 51. b5 {[%clk
0:03:39.2]} 51... Kb3 {[%clk 0:04:01.1]} 52. b6 {[%clk 0:03:37.7]} 52... Ka4
{[%clk 0:04:00.2]} 53. b7 {[%clk 0:03:37]} 53... Ka5 {[%clk 0:03:59.4]} 54. Qa8+
{[%clk 0:03:35]} 54... Kb5 {[%clk 0:03:58.2]} 55. b8=Q# {[%clk 0:03:34.6]} 1-0

[Event "Live Chess"]
[Site "Chess.com"]
[Date "2023.05.20"]
[Round "-"]
[White "Olisingapore"]
[Black "raminguy"]
[Result "1/2-1/2"]
[WhiteElo "1918"]
[BlackElo "1982"]
[TimeControl "300"]
[EndTime "11:44:42 PDT"]
[Termination "Game drawn by repetition"]

1. d4 {[%clk 0:04:55]} 1... d5 {[%clk 0:04:59.1]} 2. c4 {[%clk 0:04:51.9]} 2...
e6 {[%clk 0:04:58.2]} 3. g3 {[%clk 0:04:48.9]} 3... a6 {[%clk 0:04:57.3]} 4. Nf3
{[%clk 0:04:48.5]} 4... dxc4 {[%clk 0:04:55.8]} 5. Bg2 {[%clk 0:04:48.1]} 5...
b5 {[%clk 0:04:55.3]} 6. O-O {[%clk 0:04:46.5]} 6... Bb7 {[%clk 0:04:54.4]} 7.
Qc2 {[%clk 0:04:45.4]} 7... Nf6 {[%clk 0:04:53.1]} 8. a4 {[%clk 0:04:45]} 8...
Be7 {[%clk 0:04:47.3]} 9. b3 {[%clk 0:04:44.1]} 9... cxb3 {[%clk 0:04:45.6]} 10.
Qxb3 {[%clk 0:04:41.1]} 10... Qd5 {[%clk 0:04:39.8]} 11. Qxd5 {[%clk 0:04:38.4]}
11... Bxd5 {[%clk 0:04:36.1]} 12. axb5 {[%clk 0:04:37.7]} 12... axb5 {[%clk
0:04:35]} 13. Rxa8 {[%clk 0:04:36.8]} 13... Bxa8 {[%clk 0:04:34.3]} 14. Ba3
{[%clk 0:04:23.5]} 14... Bxa3 {[%clk 0:04:31.9]} 15. Nxa3 {[%clk 0:04:22.5]}
15... c6 {[%clk 0:04:24.3]} 16. Ne5 {[%clk 0:04:19.8]} 16... Nfd7 {[%clk
0:04:19.5]} 17. Rc1 {[%clk 0:04:14.3]} 17... Nxe5 {[%clk 0:04:18.5]} 18. dxe5
{[%clk 0:04:13.3]} 18... O-O {[%clk 0:04:05.9]} 19. Nxb5 {[%clk 0:04:09.9]}
19... cxb5 {[%clk 0:04:05.8]} 20. Bxa8 {[%clk 0:04:08.2]} 20... Nd7 {[%clk
0:04:04.6]} 21. Bc6 {[%clk 0:04:04.1]} 21... Nxe5 {[%clk 0:04:03.8]} 22. Bxb5
{[%clk 0:04:02.9]} 22... g6 {[%clk 0:03:52.3]} 23. h3 {[%clk 0:03:47.1]} 23...
Rd8 {[%clk 0:03:44.9]} 24. f4 {[%clk 0:03:43.3]} 24... Rd5 {[%clk 0:03:33.3]}
25. Rc8+ {[%clk 0:03:40.4]} 25... Kg7 {[%clk 0:03:31.6]} 26. Be8 {[%clk
0:03:36.5]} 26... Rd1+ {[%clk 0:03:25.4]} 27. Kf2 {[%clk 0:03:34.2]} 27... Nd7
{[%clk 0:03:17.8]} 28. Rc7 {[%clk 0:03:31.7]} 28... Nb6 {[%clk 0:03:13.1]} 29.
Rxf7+ {[%clk 0:03:28.4]} 29... Kg8 {[%clk 0:03:11.1]} 30. Rb7 {[%clk 0:03:23]}
30... Kf8 {[%clk 0:02:54.2]} 31. Bb5 {[%clk 0:03:10.5]} 31... Nd5 {[%clk
0:02:47.2]} 32. Rxh7 {[%clk 0:03:03.1]} 32... Nc3 {[%clk 0:02:45.7]} 33. Bd3
{[%clk 0:02:59]} 33... Rh1 {[%clk 0:02:42.9]} 34. Bxg6 {[%clk 0:02:49.3]} 34...
Rh2+ {[%clk 0:02:41.6]} 35. Kf3 {[%clk 0:02:45.5]} 35... Nxe2 {[%clk 0:02:38.5]}
36. Rf7+ {[%clk 0:02:38.9]} 36... Kg8 {[%clk 0:02:37]} 37. Ra7 {[%clk
0:02:24.1]} 37... Nd4+ {[%clk 0:02:35.2]} 38. Kg4 {[%clk 0:02:20.3]} 38... Rg2
{[%clk 0:02:29.1]} 39. h4 {[%clk 0:02:06.8]} 39... Nf5 {[%clk 0:02:27.4]} 40.
Bxf5 {[%clk 0:02:01.7]} 40... exf5+ {[%clk 0:02:26.5]} 41. Kxf5 {[%clk
0:02:01.2]} 41... Rxg3 {[%clk 0:02:25.2]} 42. h5 {[%clk 0:01:56.8]} 42... Rh3
{[%clk 0:02:22.8]} 43. Kg6 {[%clk 0:01:55]} 43... Rg3+ {[%clk 0:02:18.3]} 44.
Kf6 {[%clk 0:01:51.8]} 44... Rh3 {[%clk 0:02:16.5]} 45. Rg7+ {[%clk 0:01:47.5]}
45... Kh8 {[%clk 0:02:14.4]} 46. Rg5 {[%clk 0:01:45.3]} 46... Rf3 {[%clk
0:02:11.4]} 47. f5 {[%clk 0:01:43.7]} 47... Rf1 {[%clk 0:02:08.8]} 48. Kf7
{[%clk 0:01:41.3]} 48... Ra1 {[%clk 0:02:03.7]} 49. Rg8+ {[%clk 0:01:39.7]}
49... Kh7 {[%clk 0:02:02.1]} 50. Rg7+ {[%clk 0:01:26.5]} 50... Kh8 {[%clk
0:02:00.4]} 51. Rg6 {[%clk 0:01:21.9]} 51... Ra7+ {[%clk 0:01:58.2]} 52. Kf6
{[%clk 0:01:21.2]} 52... Ra6+ {[%clk 0:01:57.1]} 53. Kf7 {[%clk 0:01:20]} 53...
Ra7+ {[%clk 0:01:56.2]} 54. Kf6 {[%clk 0:01:19]} 54... Ra6+ {[%clk 0:01:55.5]}
55. Kg5 {[%clk 0:01:18.6]} 55... Ra1 {[%clk 0:01:51.8]} 56. h6 {[%clk
0:01:16.4]} 56... Rg1+ {[%clk 0:01:48.7]} 57. Kf6 {[%clk 0:01:15.7]} 57... Ra1
{[%clk 0:01:47.3]} 58. Kf7 {[%clk 0:01:11.4]} 58... Ra7+ {[%clk 0:01:46.3]} 59.
Kf6 {[%clk 0:01:09]} 59... Ra6+ {[%clk 0:01:45.5]} 60. Kg5 {[%clk 0:01:08.6]}
60... Ra1 {[%clk 0:01:44.3]} 61. f6 {[%clk 0:01:04.6]} 61... Rg1+ {[%clk
0:01:43.2]} 62. Kf5 {[%clk 0:01:04.1]} 62... Rf1+ {[%clk 0:01:42.2]} 63. Ke6
{[%clk 0:01:03.7]} 63... Re1+ {[%clk 0:01:41.5]} 64. Kf7 {[%clk 0:01:03.2]}
64... Ra1 {[%clk 0:01:39]} 65. h7 {[%clk 0:00:57.5]} 65... Ra7+ {[%clk
0:01:33.5]} 66. Ke6 {[%clk 0:00:49.5]} 66... Kxh7 {[%clk 0:01:28.8]} 67. f7
{[%clk 0:00:46.3]} 67... Ra6+ {[%clk 0:01:05.8]} 68. Ke7 {[%clk 0:00:38.8]}
68... Ra7+ {[%clk 0:01:04.5]} 69. Kf6 {[%clk 0:00:37.2]} 69... Ra6+ {[%clk
0:01:03.6]} 70. Kf5 {[%clk 0:00:32.4]} 70... Ra5+ {[%clk 0:01:02.8]} 71. Kf6
{[%clk 0:00:30.1]} 71... Ra6+ {[%clk 0:01:02]} 72. Kf5 {[%clk 0:00:29]} 72...
Ra5+ {[%clk 0:01:01.3]} 73. Kf6 {[%clk 0:00:27.7]} 73... Ra6+ {[%clk 0:01:00.6]}
1/2-1/2

[Event "Live Chess"]
[Site "Chess.com"]
[Date "2023.05.20"]
[Round "-"]
[White "Brooms1989"]
[Black "thrithik"]
[Result "1-0"]
[WhiteElo "1008"]
[BlackElo "459"]
[TimeControl "300"]
[EndTime "11:44:57 PDT"]
[Termination "Brooms1989 won by checkmate"]

1. e4 {[%clk 0:04:58.1]} 1... a6 {[%clk 0:04:58.6]} 2. d4 {[%clk 0:04:54.5]}
2... Nc6 {[%clk 0:04:58.2]} 3. Nc3 {[%clk 0:04:52.7]} 3... Nf6 {[%clk
0:04:56.8]} 4. e5 {[%clk 0:04:51.3]} 4... Ne4 {[%clk 0:04:56.4]} 5. Nxe4 {[%clk
0:04:48.9]} 5... Nb4 {[%clk 0:04:48.1]} 6. c3 {[%clk 0:04:45.3]} 6... Nc6 {[%clk
0:04:41.7]} 7. Nf3 {[%clk 0:04:41.4]} 7... Na5 {[%clk 0:04:34]} 8. Bd3 {[%clk
0:04:35]} 8... Nb3 {[%clk 0:04:33.1]} 9. axb3 {[%clk 0:04:33.2]} 9... g6 {[%clk
0:04:26.6]} 10. O-O {[%clk 0:04:30.5]} 10... Ra7 {[%clk 0:04:10]} 11. Be3 {[%clk
0:04:23.6]} 11... h6 {[%clk 0:04:05.2]} 12. d5 {[%clk 0:04:20.6]} 12... e6
{[%clk 0:03:59.4]} 13. Bxa7 {[%clk 0:04:17.8]} 13... exd5 {[%clk 0:03:55.3]} 14.
Ng3 {[%clk 0:04:14.5]} 14... b6 {[%clk 0:03:45.9]} 15. c4 {[%clk 0:03:54.3]}
15... Bb7 {[%clk 0:03:39.1]} 16. cxd5 {[%clk 0:03:46.4]} 16... Qa8 {[%clk
0:03:37.6]} 17. Bxb6 {[%clk 0:03:44.8]} 17... cxb6 {[%clk 0:03:36.2]} 18. Bc4
{[%clk 0:03:44.1]} 18... Bc5 {[%clk 0:03:29.1]} 19. e6 {[%clk 0:03:35.8]} 19...
Qd8 {[%clk 0:03:24.5]} 20. exf7+ {[%clk 0:03:33.4]} 20... Kxf7 {[%clk
0:03:21.2]} 21. Ne5+ {[%clk 0:03:29.2]} 21... Kf6 {[%clk 0:03:18.7]} 22. Re1
{[%clk 0:03:22.2]} 22... Kg7 {[%clk 0:03:15.2]} 23. Qf3 {[%clk 0:03:19.4]} 23...
Re8 {[%clk 0:03:14.4]} 24. Qf7+ {[%clk 0:03:17.3]} 24... Kh8 {[%clk 0:03:10.6]}
25. Nxg6# {[%clk 0:03:16.7]} 1-0

[Event "Live Chess"]
[Site "Chess.com"]
[Date "2023.05.20"]
[Round "-"]
[White "worldchessleaguelive"]
[Black "CheckThis4"]
[Result "0-1"]
[WhiteElo "1349"]
[BlackElo "2552"]
[TimeControl "300"]
[EndTime "11:45:25 PDT"]
[Termination "CheckThis4 won by resignation"]

1. d4 {[%clk 0:04:58.8]} 1... Nf6 {[%clk 0:04:58]} 2. Bf4 {[%clk 0:04:57.5]}
2... c5 {[%clk 0:04:51.8]} 3. c3 {[%clk 0:04:55.8]} 3... g6 {[%clk 0:04:48.2]}
4. Nf3 {[%clk 0:04:54.1]} 4... Bg7 {[%clk 0:04:47.3]} 5. e3 {[%clk 0:04:52.2]}
5... O-O {[%clk 0:04:39.1]} 6. Be2 {[%clk 0:04:50.6]} 6... b6 {[%clk 0:04:37.8]}
7. Nbd2 {[%clk 0:04:48.3]} 7... Bb7 {[%clk 0:04:35.5]} 8. Rc1 {[%clk 0:04:46.4]}
8... d6 {[%clk 0:04:34.2]} 9. h3 {[%clk 0:04:44.2]} 9... Nbd7 {[%clk 0:04:33]}
10. b3 {[%clk 0:04:42.9]} 10... Rc8 {[%clk 0:04:31]} 11. O-O {[%clk 0:04:38.7]}
11... h6 {[%clk 0:04:29.2]} 12. c4 {[%clk 0:04:36.8]} 12... Qe8 {[%clk
0:04:23.5]} 13. d5 {[%clk 0:04:33]} 13... Nh7 {[%clk 0:04:03.5]} 14. Bd3 {[%clk
0:04:28.6]} 14... Ne5 {[%clk 0:03:56.5]} 15. Nxe5 {[%clk 0:04:26.6]} 15... dxe5
{[%clk 0:03:56.4]} 16. Bh2 {[%clk 0:04:22.8]} 16... f5 {[%clk 0:03:55.1]} 17. e4
{[%clk 0:04:08.9]} 17... e6 {[%clk 0:03:51]} 18. exf5 {[%clk 0:04:03.6]} 18...
gxf5 {[%clk 0:03:39.5]} 19. dxe6 {[%clk 0:03:32.5]} 19... Qxe6 {[%clk
0:03:37.5]} 20. Qe2 {[%clk 0:03:20.6]} 20... Rcd8 {[%clk 0:03:34.1]} 21. Bb1
{[%clk 0:03:06.1]} 21... Qg6 {[%clk 0:03:14]} 22. g4 {[%clk 0:03:00]} 22... e4
{[%clk 0:03:08.2]} 23. f3 {[%clk 0:02:53.9]} 23... Ng5 {[%clk 0:02:54.6]} 24.
Kg2 {[%clk 0:02:28.8]} 24... exf3+ {[%clk 0:02:25.4]} 25. Nxf3 {[%clk 0:02:18]}
25... Nxf3 {[%clk 0:02:22.6]} 26. Rxf3 {[%clk 0:02:14.6]} 26... fxg4 {[%clk
0:02:09.8]} 27. hxg4 {[%clk 0:02:11.2]} 27... Qxg4+ {[%clk 0:01:59]} 28. Kf2
{[%clk 0:02:06.6]} 0-1

[Event "Live Chess"]
[Site "Chess.com"]
[Date "2023.05.20"]
[Round "-"]
[White "Andysav3"]
[Black "elephantgerrald"]
[Result "1-0"]
[WhiteElo "1695"]
[BlackElo "372"]
[TimeControl "300"]
[EndTime "11:45:30 PDT"]
[Termination "Andysav3 won on time"]

1. e4 {[%clk 0:04:56.4]} 1... e5 {[%clk 0:04:48.3]} 2. Nf3 {[%clk 0:04:44.1]}
2... Nc6 {[%clk 0:04:45.8]} 3. d4 {[%clk 0:04:42.7]} 3... exd4 {[%clk
0:04:39.3]} 4. Bc4 {[%clk 0:04:41.3]} 4... Nf6 {[%clk 0:04:35.6]} 5. O-O {[%clk
0:04:23]} 5... g6 {[%clk 0:04:31.2]} 6. e5 {[%clk 0:04:02.2]} 6... Ng4 {[%clk
0:04:26.9]} 7. Bf4 {[%clk 0:03:59.7]} 7... Bg7 {[%clk 0:04:24.1]} 8. Re1 {[%clk
0:03:56.9]} 8... O-O {[%clk 0:04:14.1]} 9. h3 {[%clk 0:03:48.1]} 9... Nh6 {[%clk
0:04:03.9]} 10. Nbd2 {[%clk 0:03:47.3]} 10... a6 {[%clk 0:03:15.3]} 11. a4
{[%clk 0:03:43.1]} 11... Na5 {[%clk 0:03:09]} 12. Ba2 {[%clk 0:03:34.8]} 12...
b6 {[%clk 0:03:02.1]} 13. Ne4 {[%clk 0:03:32.8]} 13... Bb7 {[%clk 0:03:00.2]}
14. Qd2 {[%clk 0:03:26.5]} 14... Bxe4 {[%clk 0:02:56.8]} 15. Rxe4 {[%clk
0:03:24.9]} 15... d5 {[%clk 0:02:48.3]} 16. exd6 {[%clk 0:03:20.8]} 16... cxd6
{[%clk 0:02:45.6]} 17. Bxh6 {[%clk 0:03:18.7]} 17... d5 {[%clk 0:02:30.1]} 18.
Ree1 {[%clk 0:03:10.6]} 18... b5 {[%clk 0:02:14.7]} 19. axb5 {[%clk 0:03:05.7]}
19... axb5 {[%clk 0:02:12.3]} 20. Bxg7 {[%clk 0:03:04.5]} 20... Kxg7 {[%clk
0:02:09.8]} 21. Qxd4+ {[%clk 0:03:02.9]} 21... Kg8 {[%clk 0:02:00.7]} 22. Bxd5
{[%clk 0:03:00.8]} 22... Ra6 {[%clk 0:01:37.1]} 23. c3 {[%clk 0:02:53.7]} 23...
b4 {[%clk 0:01:28.3]} 24. cxb4 {[%clk 0:02:46.4]} 24... Nb3 {[%clk 0:01:06.8]}
25. Bxb3 {[%clk 0:02:42.1]} 25... Rxa1 {[%clk 0:01:05]} 26. Rxa1 {[%clk
0:02:39.4]} 26... Qxd4 {[%clk 0:01:03.7]} 27. Nxd4 {[%clk 0:02:37.7]} 27... Rd8
{[%clk 0:00:51.1]} 28. Nc6 {[%clk 0:02:33]} 28... Rd2 {[%clk 0:00:45.9]} 29. Ra2
{[%clk 0:02:19.2]} 29... Kf8 {[%clk 0:00:40]} 30. b5 {[%clk 0:02:17.1]} 30...
Ke8 {[%clk 0:00:36.2]} 31. Ra8+ {[%clk 0:02:12.5]} 31... Kd7 {[%clk 0:00:34.9]}
32. Rd8+ {[%clk 0:02:10.8]} 32... Kc7 {[%clk 0:00:31.9]} 33. Rxd2 {[%clk
0:02:09.1]} 33... Kb6 {[%clk 0:00:30.8]} 34. Bxf7 {[%clk 0:02:04.3]} 34... Kxb5
{[%clk 0:00:29]} 35. Ne7 {[%clk 0:02:00.8]} 35... g5 {[%clk 0:00:24]} 36. Rd5+
{[%clk 0:01:56]} 36... Kc4 {[%clk 0:00:22.2]} 37. Rxg5+ {[%clk 0:01:55]} 37...
Kd3 {[%clk 0:00:20.8]} 38. Rh5 {[%clk 0:01:53.7]} 38... Kc2 {[%clk 0:00:19.4]}
39. Rxh7 {[%clk 0:01:52.5]} 39... Kxb2 {[%clk 0:00:18.3]} 40. h4 {[%clk
0:01:51]} 40... Kc3 {[%clk 0:00:18.1]} 41. h5 {[%clk 0:01:50.1]} 41... Kd4
{[%clk 0:00:17]} 42. h6 {[%clk 0:01:48.8]} 42... Ke5 {[%clk 0:00:16.1]} 43. f4+
{[%clk 0:01:44.7]} 43... Kf6 {[%clk 0:00:15]} 44. Nd5+ {[%clk 0:01:40.1]} 44...
Kf5 {[%clk 0:00:13.2]} 45. Rg7 {[%clk 0:01:35.8]} 45... Ke4 {[%clk 0:00:09.5]}
46. h7 {[%clk 0:01:34.4]} 46... Kf5 {[%clk 0:00:07.8]} 47. h8=Q {[%clk
0:01:32.2]} 47... Ke4 {[%clk 0:00:06.5]} 48. Bg6+ {[%clk 0:01:30.3]} 48... Kxd5
{[%clk 0:00:03.1]} 49. Rd7+ {[%clk 0:01:28.5]} 49... Kc4 {[%clk 0:00:01.5]} 50.
Qc8+ {[%clk 0:01:27.1]} 50... Kb3 {[%clk 0:00:00.2]} 51. Rb7+ {[%clk 0:01:25.9]}
1-0

[Event "Live Chess"]
[Site "Chess.com"]
[Date "2023.05.20"]
[Round "-"]
[White "Geomorph"]
[Black "HoarseyHorsey"]
[Result "1-0"]
[WhiteElo "1232"]
[BlackElo "1348"]
[TimeControl "300"]
[EndTime "11:45:38 PDT"]
[Termination "Geomorph won by resignation"]

1. e4 {[%clk 0:04:59.2]} 1... c5 {[%clk 0:04:57.8]} 2. Nf3 {[%clk 0:04:58.3]}
2... e6 {[%clk 0:04:57.2]} 3. Nc3 {[%clk 0:04:54.2]} 3... Nc6 {[%clk 0:04:55.8]}
4. Bb5 {[%clk 0:04:50.4]} 4... d5 {[%clk 0:04:52.7]} 5. exd5 {[%clk 0:04:47.4]}
5... exd5 {[%clk 0:04:52.6]} 6. Ne5 {[%clk 0:04:41]} 6... Qc7 {[%clk 0:04:50.9]}
7. Qe2 {[%clk 0:04:36.9]} 7... Be7 {[%clk 0:04:48.1]} 8. Nxd5 {[%clk 0:04:32]}
8... Qd6 {[%clk 0:04:43.3]} 9. Nxc6 {[%clk 0:04:21.3]} 9... bxc6 {[%clk
0:04:43.2]} 10. Nxe7 {[%clk 0:04:13]} 10... Nxe7 {[%clk 0:04:41.5]} 11. Bc4
{[%clk 0:04:02.9]} 11... O-O {[%clk 0:04:38.5]} 12. O-O {[%clk 0:04:01.9]} 12...
Re8 {[%clk 0:04:37.4]} 13. Qf3 {[%clk 0:03:59.2]} 13... Nd5 {[%clk 0:04:35.8]}
14. c3 {[%clk 0:03:52.1]} 14... Be6 {[%clk 0:04:31.6]} 15. Bb3 {[%clk
0:03:46.5]} 15... a5 {[%clk 0:04:18.9]} 16. Bc2 {[%clk 0:03:43.7]} 16... Nf6
{[%clk 0:04:14.4]} 17. d3 {[%clk 0:03:35.5]} 17... Bd5 {[%clk 0:04:13.3]} 18.
Qh3 {[%clk 0:03:27.9]} 18... Re6 {[%clk 0:03:54.1]} 19. c4 {[%clk 0:03:22.2]}
19... Rae8 {[%clk 0:03:49.3]} 20. cxd5 {[%clk 0:03:20.2]} 20... cxd5 {[%clk
0:03:48.7]} 21. Bd2 {[%clk 0:03:16.9]} 21... Re2 {[%clk 0:03:45]} 22. Rad1
{[%clk 0:03:13.7]} 22... c4 {[%clk 0:03:36.6]} 23. dxc4 {[%clk 0:03:11.4]} 23...
dxc4 {[%clk 0:03:34.9]} 24. Be3 {[%clk 0:02:44.2]} 24... Qc6 {[%clk 0:03:15.7]}
25. Bf5 {[%clk 0:02:40.4]} 25... g6 {[%clk 0:03:08.9]} 26. Bb1 {[%clk
0:02:34.9]} 26... Rxb2 {[%clk 0:03:03.9]} 27. Bd4 {[%clk 0:02:29.7]} 27... h5
{[%clk 0:02:45.4]} 28. Bxb2 {[%clk 0:02:26.4]} 1-0

[Event "Live Chess"]
[Site "Chess.com"]
[Date "2023.05.20"]
[Round "-"]
[White "Reggie016"]
[Black "apl_trainer"]
[Result "0-1"]
[WhiteElo "1069"]
[BlackElo "1628"]
[TimeControl "300"]
[EndTime "11:45:40 PDT"]
[Termination "apl_trainer won by resignation"]

1. e4 {[%clk 0:04:58.7]} 1... c5 {[%clk 0:04:57.7]} 2. c3 {[%clk 0:04:57.5]}
2... Nf6 {[%clk 0:04:56.1]} 3. e5 {[%clk 0:04:43.4]} 3... Nd5 {[%clk 0:04:54.9]}
4. d4 {[%clk 0:04:41.9]} 4... cxd4 {[%clk 0:04:53.8]} 5. cxd4 {[%clk 0:04:41.8]}
5... e6 {[%clk 0:04:52.5]} 6. Bc4 {[%clk 0:04:41.3]} 6... d6 {[%clk 0:04:50.3]}
7. Nf3 {[%clk 0:04:39.5]} 7... Nc6 {[%clk 0:04:48.5]} 8. O-O {[%clk 0:04:38.5]}
8... Be7 {[%clk 0:04:38.3]} 9. Bd3 {[%clk 0:04:30.5]} 9... Bd7 {[%clk
0:04:25.1]} 10. Nc3 {[%clk 0:04:19.5]} 10... Nxc3 {[%clk 0:04:23.3]} 11. bxc3
{[%clk 0:04:19.4]} 11... dxe5 {[%clk 0:04:20.8]} 12. dxe5 {[%clk 0:04:15.8]}
12... Qc7 {[%clk 0:04:16.8]} 13. Re1 {[%clk 0:04:03.6]} 13... h6 {[%clk
0:04:15.2]} 14. Bf4 {[%clk 0:03:54.1]} 14... Na5 {[%clk 0:04:12.1]} 15. Rb1
{[%clk 0:03:41.9]} 15... Bc6 {[%clk 0:04:01.5]} 16. Nd4 {[%clk 0:03:33.8]} 16...
Rd8 {[%clk 0:03:46.6]} 17. Nxc6 {[%clk 0:03:22.9]} 17... Nxc6 {[%clk 0:03:42.5]}
18. Qb3 {[%clk 0:03:08.1]} 18... Rxd3 {[%clk 0:03:34.9]} 0-1